bitfinex/quotes_ETHUSD_20250924
["timestamp","ask_amount","ask_price","bid_price","bid_amount"]
[1758707015180,4.53395511,4189.4,4189.3,19.1525]
[1758707018170,1.00944791,4189.4,4189.3,19.1525]
[1758707018412,0.63508213,4189.4,4189.3,19.1525]
[1758707018704,0.63508213,4189.4,4189.3,21.53953363]
[1758707019206,0.51588213,4189.4,4189.3,21.53953363]
[1758707019408,0.51588213,4189.5,4189.3,19.1525]
[1758707019708,0.51588213,4189.4,4189.3,18.487]
[1758707019909,0.51588213,4189.6,4189.3,18.487]
[1758707020112,0.51588213,4189.5,4189.3,18.487]
[1758707020315,0.6437072,4189.7,4189.3,20.87403363]
[1758707020316,0.51588213,4189.4,4189.3,20.87403363]
[1758707020996,0.51588213,4189.6,4189.3,21.53953363]
[1758707021302,0.51588213,4189.5,4189.4,0.6655]
[1758707021711,0.51588213,4189.7,4189.5,2.3869131]
[1758707021892,0.7639072,4189.8,4189.6,4.6867]
[1758707022206,0.51516094,4189.7,4189.6,3.982]
[1758707022405,0.51516094,4189.7,4189.6,6.39273132]
[1758707022702,0.51516094,4189.7,4189.6,4.6867]
[1758707023267,0.51516094,4189.7,4189.6,7.0735627]
[1758707023472,0.51516094,4189.7,4189.6,4.6867]
[1758707024909,0.51516094,4189.7,4189.4,0.1192]
[1758707025209,0.51516094,4189.6,4189.5,3.982]
[1758707025411,0.51516094,4189.7,4189.5,3.982]
[1758707025577,0.51516094,4189.6,4189.5,4.4387]
[1758707025777,0.51516094,4189.7,4189.5,4.6867]
[1758707026009,0.51516094,4189.6,4189.5,3.982]
[1758707026588,2.90204814,4189.6,4189.3,14.504]
[1758707026906,2.76120631,4189.6,4189.4,3.982]
[1758707027123,2.90210146,4189.5,4189.3,14.504]
[1758707027291,0.87586094,4189.5,4189.4,3.982]
[1758707027493,5.62847665,4189.4,4189.3,14.504]
[1758707027812,6.14363759,4189.4,4189.3,18.486]
[1758707028187,6.33263759,4189.4,4189.3,0.004]
[1758707028392,7.19094082,4189.4,4189.3,2.677]
[1758707028625,9.11242108,4189.4,4189.3,0.004]
[1758707029207,8.25411785,4189.4,4189.3,0.004]
[1758707031837,8.06511785,4189.4,4189.3,0.004]
[1758707032733,8.25411785,4189.4,4189.3,0.004]
[1758707034632,8.06511785,4189.4,4189.3,0.004]
[1758707035535,8.43949837,4189.4,4189.3,0.004]
[1758707036437,8.62769837,4189.4,4189.3,0.004]
[1758707037553,8.62769837,4189.4,4189.2,0.004]
[1758707037554,5.38703363,4189.3,4189.2,0.004]
[1758707037703,7.36623113,4189.3,4189.2,0.004]
[1758707037903,7.55523113,4189.3,4189.2,0.004]
[1758707038235,7.65095892,4189.3,4189.2,0.004]
[1758707038543,8.68025892,4189.3,4189.2,0.004]
[1758707039041,6.17920458,4189.0,4188.9,1e-08]
[1758707039237,12.11287025,4189.0,4188.9,1e-08]
[1758707039438,6.17926157,4188.9,4188.4,0.004]
[1758707039615,3.17948955,4188.5,4188.4,0.004]
[1758707039941,6.69465049,4188.5,4188.4,0.004]
[1758707040237,7.02768997,4188.5,4188.4,0.004]
[1758707040441,9.80253878,4188.5,4188.4,0.004]
[1758707041441,8.51504582,4188.5,4188.4,0.004]
[1758707041639,9.80253878,4188.5,4188.4,0.004]
[1758707041843,10.17700722,4188.5,4188.4,0.004]
[1758707042064,8.88951426,4188.5,4188.4,0.004]
[1758707042367,8.65221426,4188.5,4188.4,0.004]
[1758707042529,8.88951426,4188.5,4188.4,0.004]
[1758707044570,9.74640339,4188.5,4188.4,0.004]
[1758707045434,9.50910339,4188.5,4188.4,0.004]
[1758707047467,8.65221426,4188.5,4188.4,0.004]
[1758707049367,8.27774582,4188.5,4188.4,0.004]
[1758707054361,9.13463495,4188.5,4188.4,0.004]
[1758707056267,8.65220959,4188.5,4188.4,0.004]
[1758707060243,8.89420959,4188.5,4188.4,0.004]
[1758707061257,10.18170255,4188.5,4188.4,0.004]
[1758707061452,9.93970255,4188.5,4188.4,0.004]
[1758707063465,9.93890255,4188.5,4188.4,0.004]
[1758707064367,8.65140959,4188.5,4188.4,0.004]
[1758707066177,3.29874655,4188.4,4188.3,0.004]
[1758707066380,5.67006066,4188.4,4188.3,0.004]
[1758707066683,5.91206066,4188.4,4188.3,0.004]
[1758707069001,5.67006066,4188.4,4188.3,0.004]
[1758707070303,5.67006066,4188.4,4188.3,0.6876]
[1758707071297,5.67006066,4188.4,4188.3,0.004]
[1758707071470,5.67006066,4188.4,4188.3,0.4377]
[1758707071670,5.67006066,4188.4,4188.3,0.6876]
[1758707073110,5.67006066,4188.4,4188.3,0.004]
[1758707074910,3.17966057,4188.2,4188.1,0.02]
[1758707075102,3.69482151,4188.2,4188.1,0.02]
[1758707078614,3.93682151,4188.2,4188.1,0.02]
[1758707079193,3.69482151,4188.2,4188.1,0.02]
[1758707080540,3.69482151,4188.2,4188.1,0.7036]
[1758707081340,3.69482151,4188.2,4188.1,0.7076]
[1758707082045,3.69482151,4188.2,4188.1,0.705]
[1758707084556,5.4130773,4188.2,4188.1,0.705]
[1758707086855,5.4130773,4188.2,4188.1,0.024]
[1758707087332,2.38777459,4188.0,4187.9,0.6892]
[1758707087672,4.19407367,4188.0,4187.9,0.6892]
[1758707088057,7.56855144,4188.0,4187.9,0.6892]
[1758707088376,9.01577551,4188.0,4187.9,0.004]
[1758707088546,9.80777551,4188.0,4187.9,0.004]
[1758707088747,10.04237551,4188.0,4187.9,0.004]
[1758707089074,10.29367551,4188.0,4187.9,0.004]
[1758707089635,9.00253737,4188.0,4187.9,0.004]
[1758707090339,8.76793737,4188.0,4187.9,0.004]
[1758707090882,8.76713737,4188.0,4187.9,0.004]
[1758707091465,9.00173737,4188.0,4187.9,0.004]
[1758707091970,8.6272596,4188.0,4187.9,0.004]
[1758707092170,8.3926596,4188.0,4187.9,0.004]
[1758707092571,8.2364104,4188.0,4187.9,0.6892]
[1758707096368,8.61088568,4188.0,4187.9,0.6892]
[1758707098601,8.61168568,4188.0,4187.9,0.6892]
[1758707098781,7.56838568,4188.0,4187.9,0.6892]
[1758707100016,7.1939104,4188.0,4187.9,0.6892]
[1758707100866,4.80613581,4188.0,4187.9,0.6892]
[1758707101065,5.90293553,4188.0,4187.9,15.1892]
[1758707101262,4.80613581,4188.0,4187.9,15.1892]
[1758707101703,3.63436094,4188.0,4187.9,15.1892]
[1758707101865,4.49505452,4188.0,4187.9,15.1892]
[1758707102886,3.63436094,4188.0,4187.9,15.1892]
[1758707103814,3.63436094,4188.0,4187.9,19.1692]
[1758707104021,3.63436094,4188.0,4187.9,4.6692]
[1758707104374,4.00882343,4188.0,4187.9,4.6692]
[1758707104599,4.00882343,4188.0,4187.9,19.1692]
[1758707105119,3.88962343,4188.0,4187.9,19.1692]
[1758707106712,4.53471993,4188.0,4187.9,19.1692]
[1758707108013,1.53471993,4188.0,4187.9,19.1692]
[1758707108870,1.53471993,4188.0,4187.9,21.55703161]
[1758707109205,0.88962343,4188.0,4187.9,21.55703161]
[1758707109713,0.51516094,4188.0,4187.9,21.67623161]
[1758707110007,0.51516094,4188.1,4188.0,2.38777459]
[1758707110224,0.001,4188.2,4188.1,2.38771758]
[1758707110377,0.001,4188.2,4188.1,7.09579475]
[1758707110580,0.001,4188.2,4188.1,7.07191758]
[1758707111089,0.001,4188.2,4188.1,21.57191758]
[1758707112008,0.001,4188.2,4188.1,17.59191758]
[1758707112188,0.001,4188.2,4188.1,23.56191758]
[1758707114910,0.001,4188.2,4188.1,17.59191758]
[1758707115211,0.001,4188.2,4188.1,21.1722]
[1758707115773,0.001,4188.2,4188.1,14.5]
[1758707116010,0.001,4188.2,4188.1,18.479]
[1758707116177,0.001,4188.2,4188.1,14.5]
[1758707116377,0.001,4188.2,4188.1,18.479]
[1758707117913,2.76228429,4188.2,4188.1,18.479]
[1758707118077,3.00078429,4188.2,4188.1,14.5]
[1758707118434,3.00078429,4188.2,4188.1,18.479]
[1758707118732,0.61312372,4188.2,4188.1,3.979]
[1758707119010,3.00078429,4188.2,4188.1,3.979]
[1758707119316,3.00078429,4188.2,4188.1,18.479]
[1758707120413,2.76228429,4188.2,4188.1,18.479]
[1758707120910,2.38786057,4188.2,4188.1,18.479]
[1758707121315,2.90302151,4188.2,4188.1,18.479]
[1758707122216,2.90302151,4188.2,4188.1,3.979]
[1758707122715,0.51536094,4188.2,4188.1,18.479]
[1758707124222,2.90302151,4188.2,4188.1,18.479]
[1758707124762,0.51536094,4188.2,4188.1,18.479]
[1758707126328,2.90302151,4188.2,4188.1,18.479]
[1758707128498,3.14152151,4188.2,4188.1,18.479]
[1758707129017,2.90302151,4188.2,4188.1,18.479]
[1758707130539,2.90302151,4188.2,4188.1,18.479]
[1758707132000,3.14152151,4188.2,4188.1,18.479]
[1758707132196,4.87392243,4188.2,4188.1,14.5]
[1758707132416,7.41782593,4188.2,4188.1,3.979]
[1758707132617,8.08951951,4188.2,4188.1,3.979]
[1758707132921,8.65298866,4188.2,4188.1,3.979]
[1758707133129,7.79229508,4188.2,4188.1,3.979]
[1758707134237,8.65152191,4188.2,4188.1,3.979]
[1758707135933,8.46252191,4188.2,4188.1,3.979]
[1758707136114,2.38777459,4188.0,4187.9,0.004]
[1758707136438,5.90293553,4188.0,4187.9,3.982]
[1758707136840,6.62098158,4188.0,4187.9,3.982]
[1758707137151,4.23320699,4188.0,4187.9,18.482]
[1758707137356,6.62098158,4188.0,4187.9,18.482]
[1758707137921,6.62098158,4188.0,4187.9,18.9255]
[1758707138122,4.23320699,4188.0,4187.9,19.1662]
[1758707138621,6.62098158,4188.0,4187.9,19.1662]
[1758707139948,4.23320699,4188.0,4187.9,19.1662]
[1758707140331,6.62098158,4188.0,4187.9,19.1662]
[1758707140727,6.62098158,4188.0,4187.9,18.482]
[1758707141242,6.62098158,4188.0,4187.9,3.982]
[1758707141875,6.86788158,4188.0,4187.9,18.482]
[1758707142447,6.62098158,4188.0,4187.9,18.482]
[1758707144049,6.62098158,4188.0,4187.9,19.1518]
[1758707144456,6.62098158,4188.0,4187.9,18.9111]
[1758707144775,6.62018158,4188.0,4187.9,18.9111]
[1758707145941,6.62018158,4188.0,4187.9,18.482]
[1758707146361,6.86708158,4188.0,4187.9,18.482]
[1758707146542,7.32042858,4188.0,4187.9,18.482]
[1758707146748,6.86708158,4188.0,4187.9,18.482]
[1758707147272,6.62018158,4188.0,4187.9,18.482]
[1758707148599,6.62018158,4188.0,4187.9,14.504]
[1758707148761,6.62018158,4188.0,4187.9,18.482]
[1758707149159,6.62018158,4188.0,4187.9,3.982]
[1758707149365,7.47940841,4188.0,4187.9,3.982]
[1758707149874,7.47940841,4188.0,4187.9,18.482]
[1758707151860,7.47940841,4188.0,4187.9,18.9111]
[1758707152071,7.47940841,4188.0,4187.9,19.1518]
[1758707152282,5.09163382,4188.0,4187.9,19.1518]
[1758707152993,7.47940841,4188.0,4187.9,19.1518]
[1758707153190,5.09163382,4188.0,4187.9,18.482]
[1758707153392,5.09163382,4188.0,4187.9,19.1518]
[1758707154061,7.47940841,4188.0,4187.9,19.1518]
[1758707155184,7.47940841,4188.0,4187.9,4.6518]
[1758707155924,7.47940841,4188.0,4187.9,19.1518]
[1758707156327,5.09163382,4188.0,4187.9,19.1518]
[1758707156491,4.37358777,4188.0,4187.9,4.6518]
[1758707156689,0.51436094,4188.0,4187.9,5.11778]
[1758707156896,0.51436094,4188.0,4187.9,19.61778]
[1758707157585,0.51436094,4188.0,4187.9,22.00561161]
[1758707158086,0.51436094,4188.0,4187.9,19.61778]
[1758707158282,0.51436094,4188.0,4187.9,22.00561161]
[1758707158612,0.51436094,4188.0,4187.9,22.12481161]
[1758707161235,0.51436094,4188.1,4188.0,2.38777459]
[1758707161385,0.51436094,4188.1,4188.0,3.82269259]
[1758707162143,0.0002,4188.2,4188.1,2.38771758]
[1758707162450,0.0002,4188.2,4188.1,7.03171758]
[1758707162451,0.51456094,4188.2,4188.1,7.03171758]
[1758707162749,0.0002,4188.2,4188.1,13.72827559]
[1758707162907,0.51456094,4188.2,4188.1,13.72827559]
[1758707163113,0.0002,4188.2,4188.1,14.19425559]
[1758707163312,0.0002,4188.2,4188.1,28.69425559]
[1758707166748,0.0002,4188.2,4188.1,26.30653801]
[1758707166936,0.0002,4188.2,4188.1,28.69425559]
[1758707167514,0.0002,4188.2,4188.1,19.72918]
[1758707167840,0.0002,4188.2,4188.1,19.06218]
[1758707168044,0.0002,4188.2,4188.1,15.08518]
[1758707168244,0.0002,4188.2,4188.1,21.05118]
[1758707168657,0.0002,4188.2,4188.1,24.10589758]
[1758707170472,0.0002,4188.2,4188.1,21.05118]
[1758707170842,0.2472,4188.2,4188.1,3.976]
[1758707171038,2.38777459,4188.0,4187.9,0.004]
[1758707171258,5.90213553,4188.0,4187.9,3.98]
[1758707171470,6.14913553,4188.0,4187.9,3.98]
[1758707171674,6.14913553,4188.0,4187.9,0.004]
[1758707171878,7.3110596,4188.0,4187.9,3.98]
[1758707172275,8.02910393,4188.0,4187.9,3.98]
[1758707173876,8.67412063,4188.0,4187.9,3.98]
[1758707174176,8.40358494,4188.0,4187.9,3.98]
[1758707175273,8.40358494,4188.0,4187.9,18.48]
[1758707175472,5.82761035,4188.0,4187.9,18.48]
[1758707175666,6.47149691,4188.0,4187.9,18.48]
[1758707175974,8.8592715,4188.0,4187.9,18.48]
[1758707176334,5.50645258,4188.0,4187.9,18.48]
[1758707176573,5.50645258,4188.0,4187.9,19.1578]
[1758707176574,3.88884195,4188.0,4187.9,19.1578]
[1758707178388,3.88884195,4188.0,4187.9,4.6578]
[1758707179093,3.88884195,4188.0,4187.9,18.9273]
[1758707181898,0.88884195,4188.0,4187.9,19.1578]
[1758707185514,0.88974109,4188.0,4187.9,19.1578]
[1758707187099,0.88974109,4188.0,4187.9,18.9273]
[1758707187798,0.88974109,4188.0,4187.9,18.48]
[1758707188004,3.51261568,4188.0,4187.9,18.48]
[1758707188209,3.51261568,4188.0,4187.9,14.504]
[1758707188502,3.51261568,4188.0,4187.9,18.48]
[1758707188876,6.51261568,4188.0,4187.9,18.48]
[1758707189079,7.15669079,4188.0,4187.9,18.48]
[1758707189508,7.15669079,4188.0,4187.9,14.504]
[1758707189669,7.15669079,4188.0,4187.9,18.48]
[1758707189999,6.92159079,4188.0,4187.9,14.504]
[1758707190202,8.41688918,4188.0,4187.9,14.504]
[1758707190505,7.77281407,4188.0,4187.9,18.48]
[1758707190882,7.58381407,4188.0,4187.9,18.48]
[1758707191509,5.19603948,4188.0,4187.9,18.48]
[1758707191815,4.65306278,4188.0,4187.9,18.48]
[1758707191970,7.04083737,4188.0,4187.9,19.1578]
[1758707192371,7.04083737,4188.0,4187.9,18.48]
[1758707192823,6.39771568,4188.0,4187.9,18.48]
[1758707193393,6.63281568,4188.0,4187.9,18.48]
[1758707194904,4.00994109,4188.0,4187.9,18.48]
[1758707195131,4.00994109,4188.0,4187.9,19.1578]
[1758707195333,6.39771568,4188.0,4187.9,19.1578]
[1758707196423,6.39771568,4188.0,4187.9,0.6818]
[1758707196615,6.39771568,4188.0,4187.9,4.6578]
[1758707196932,4.00994109,4188.0,4187.9,19.1578]
[1758707197112,6.39771568,4188.0,4187.9,19.1578]
[1758707197519,6.39771568,4188.0,4187.9,15.1818]
[1758707197720,6.39771568,4188.0,4187.9,19.1578]
[1758707197895,4.00994109,4188.0,4187.9,19.1578]
[1758707198235,4.00994109,4188.0,4187.9,18.9273]
[1758707198828,6.39771568,4188.0,4187.9,18.9273]
[1758707199025,4.00914109,4188.0,4187.9,18.9273]
[1758707199328,6.39691568,4188.0,4187.9,18.9273]
[1758707200034,6.39691568,4188.0,4187.9,18.48]
[1758707200235,7.25614251,4188.0,4187.9,18.48]
[1758707200737,7.25614251,4188.0,4187.9,3.98]
[1758707201135,7.25614251,4188.0,4187.9,18.48]
[1758707201737,4.86836792,4188.0,4187.9,18.48]
[1758707202044,7.25614251,4188.0,4187.9,18.48]
[1758707202334,7.25614251,4188.0,4187.9,19.1595]
[1758707202537,4.86836792,4188.0,4187.9,19.1595]
[1758707203236,7.25614251,4188.0,4187.9,18.48]
[1758707203650,4.86836792,4188.0,4187.9,18.48]
[1758707203802,7.25614251,4188.0,4187.9,18.48]
[1758707204140,6.39691568,4188.0,4187.9,18.48]
[1758707204305,4.00914109,4188.0,4187.9,18.48]
[1758707205106,6.39691568,4188.0,4187.9,18.48]
[1758707205516,4.00914109,4188.0,4187.9,18.48]
[1758707206042,4.86982142,4188.0,4187.9,19.1595]
[1758707207040,7.25759601,4188.0,4187.9,18.479]
[1758707207229,8.37445161,4188.0,4187.9,18.479]
[1758707207427,8.60655161,4188.0,4187.9,3.979]
[1758707207650,7.74587128,4188.0,4187.9,3.979]
[1758707208784,8.60655616,4188.0,4187.9,3.979]
[1758707210564,8.37445616,4188.0,4187.9,3.979]
[1758707212476,7.25760056,4188.0,4187.9,3.979]
[1758707212681,4.86982597,4188.0,4187.9,3.979]
[1758707212843,4.86982597,4188.0,4187.9,4.6585]
[1758707212844,7.25760056,4188.0,4187.9,4.6585]
[1758707213049,4.86982597,4188.0,4187.9,4.6585]
[1758707214078,7.25760056,4188.0,4187.9,4.6585]
[1758707214279,7.25760056,4188.0,4187.9,19.1585]
[1758707214484,4.86982597,4188.0,4187.9,19.1585]
[1758707215278,4.00914109,4188.0,4187.9,19.1585]
[1758707218184,4.00914109,4188.0,4187.9,14.504]
[1758707218359,6.64451568,4188.0,4187.9,14.504]
[1758707218564,6.64451568,4188.0,4187.9,18.479]
[1758707218565,6.92694728,4188.0,4187.9,18.479]
[1758707218763,7.17454728,4188.0,4187.9,18.479]
[1758707219959,4.00914109,4188.0,4187.9,18.479]
[1758707220186,4.00914109,4188.0,4187.9,19.1576]
[1758707220376,6.39691568,4188.0,4187.9,19.1576]
[1758707220574,6.39691568,4188.0,4187.9,18.7159]
[1758707220777,6.39691568,4188.0,4187.9,18.479]
[1758707221787,7.67685103,4188.0,4187.9,3.979]
[1758707222278,7.67685103,4188.0,4187.9,18.479]
[1758707225781,7.42925103,4188.0,4187.9,18.479]
[1758707225986,6.39691568,4188.0,4187.9,18.479]
[1758707226300,6.39611568,4188.0,4187.9,18.479]
[1758707228099,6.39611568,4188.0,4187.9,14.504]
[1758707228265,6.64371568,4188.0,4187.9,3.979]
[1758707228597,6.39611568,4188.0,4187.9,3.979]
[1758707233913,6.39611568,4188.0,4187.9,4.4224]
[1758707234120,6.39611568,4188.0,4187.9,3.979]
[1758707235018,6.39611568,4188.0,4187.9,4.6646]
[1758707235722,6.39611568,4188.0,4187.9,19.1646]
[1758707236987,7.11416173,4188.0,4187.9,19.1646]
[1758707237921,7.11416173,4188.0,4187.9,18.479]
[1758707238717,7.11416173,4188.0,4187.9,3.979]
[1758707239220,7.11416173,4188.0,4187.9,18.479]
[1758707240622,7.97521118,4188.0,4187.9,18.479]
[1758707240923,7.11416173,4188.0,4187.9,18.479]
[1758707241292,5.58744391,4188.0,4187.9,19.1646]
[1758707241493,7.9752185,4188.0,4187.9,19.1646]
[1758707241689,7.11416173,4188.0,4187.9,18.479]
[1758707243319,7.11416173,4188.0,4187.9,14.504]
[1758707243511,7.11416173,4188.0,4187.9,18.478]
[1758707244515,7.11416173,4188.0,4187.9,3.978]
[1758707245026,7.11416173,4188.0,4187.9,18.478]
[1758707247933,7.11416173,4188.0,4187.9,0.004]
[1758707248246,8.19346403,4188.0,4187.9,3.978]
[1758707248397,8.19346403,4188.0,4187.9,18.478]
[1758707248800,7.34136173,4188.0,4187.9,18.478]
[1758707249722,7.11416173,4188.0,4187.9,18.478]
[1758707250423,7.34136173,4188.0,4187.9,18.478]
[1758707250756,7.11416173,4188.0,4187.9,18.478]
[1758707251538,7.11416173,4188.0,4187.9,3.978]
[1758707252054,7.11416173,4188.0,4187.9,19.1636]
[1758707252558,7.11416173,4188.0,4187.9,15.1896]
[1758707252732,7.11416173,4188.0,4187.9,19.1626]
[1758707253654,7.11336173,4188.0,4187.9,19.1626]
[1758707254059,7.11336173,4188.0,4187.9,18.477]
[1758707254757,7.34056173,4188.0,4187.9,18.477]
[1758707255525,7.34056173,4188.0,4187.9,14.504]
[1758707255720,7.11336173,4188.0,4187.9,18.477]
[1758707256138,7.11336173,4188.0,4187.9,14.504]
[1758707256359,7.11336173,4188.0,4187.9,18.477]
[1758707258659,7.11336173,4188.0,4187.9,14.504]
[1758707258867,7.11336173,4188.0,4187.9,18.477]
[1758707259459,7.34056173,4188.0,4187.9,18.477]
[1758707259666,7.34056173,4188.0,4187.8,0.004]
[1758707259667,6.17983161,4187.9,4187.8,0.004]
[1758707259834,5.38788862,4187.8,4187.6,3.977]
[1758707260036,5.90320573,4187.7,4187.6,0.004]
[1758707260239,8.67305215,4187.7,4187.6,0.004]
[1758707260437,8.90025215,4187.7,4187.6,0.004]
[1758707260838,6.29920267,4187.6,4187.5,0.004]
[1758707261140,2.38817376,4187.3,4187.2,1e-08]
[1758707261468,9.87643384,4187.3,4187.2,1e-08]
[1758707261668,12.04994066,4187.3,4187.2,1e-08]
[1758707262268,12.14571681,4187.3,4187.2,1e-08]
[1758707263037,12.5203177,4187.3,4187.2,1e-08]
[1758707264069,12.3313177,4187.3,4187.2,1e-08]
[1758707264440,8.9242177,4187.3,4187.2,1e-08]
[1758707264635,9.40762536,4187.3,4187.2,1e-08]
[1758707265269,8.54961681,4187.3,4187.2,1e-08]
[1758707265674,9.40762536,4187.3,4187.2,1e-08]
[1758707265981,8.96471681,4187.3,4187.2,1e-08]
[1758707266183,12.93771681,4187.3,4187.2,1e-08]
[1758707267052,12.74871681,4187.3,4187.2,1e-08]
[1758707267376,13.60631199,4187.3,4187.2,1e-08]
[1758707268745,13.79531199,4187.3,4187.2,1e-08]
[1758707269869,13.60631199,4187.3,4187.2,1e-08]
[1758707274567,13.98090272,4187.3,4187.2,1e-08]
[1758707275491,13.75480272,4187.3,4187.2,1e-08]
[1758707276154,12.89720754,4187.3,4187.2,1e-08]
[1758707277180,13.12330754,4187.3,4187.2,1e-08]
[1758707279504,12.89820754,4187.3,4187.2,1e-08]
[1758707279681,12.89820754,4187.3,4187.2,0.47460001]
[1758707280403,12.89740754,4187.3,4187.2,0.47460001]
[1758707280708,12.89740754,4187.3,4187.2,1e-08]
[1758707281072,12.89740754,4187.3,4187.2,0.70900001]
[1758707281606,12.89740754,4187.3,4187.2,0.47460001]
[1758707281803,13.75510711,4187.3,4187.2,0.70900001]
[1758707282181,12.89740754,4187.3,4187.2,1e-08]
[1758707283479,13.12370754,4187.3,4187.2,1e-08]
[1758707284783,6.37443503,4187.3,4187.2,0.70900001]
[1758707285113,7.16643503,4187.3,4187.2,1e-08]
[1758707285314,8.67982623,4187.3,4187.2,1e-08]
[1758707285810,8.45352623,4187.3,4187.2,1e-08]
[1758707286012,9.95761482,4187.3,4187.2,1e-08]
[1758707286212,10.18391482,4187.3,4187.2,1e-08]
[1758707286594,9.95761482,4187.3,4187.2,1e-08]
[1758707287430,8.29593289,4187.3,4187.2,1e-08]
[1758707288192,6.18023079,4187.2,4187.1,0.024]
[1758707288392,8.80227752,4187.2,4187.1,0.733]
[1758707290310,8.80227752,4187.2,4187.1,0.4986]
[1758707291845,9.17686135,4187.2,4187.1,0.7373]
[1758707292010,6.27850901,4187.2,4187.1,0.7373]
[1758707292213,7.56962245,4187.2,4187.1,0.7373]
[1758707292415,3.76460361,4187.2,4187.1,0.7373]
[1758707292603,3.88380361,4187.2,4187.1,15.2373]
[1758707295360,3.39767962,4187.2,4187.1,15.2373]
[1758707295519,3.39767962,4187.2,4187.1,0.7373]
[1758707296163,3.39767962,4187.2,4187.1,15.2373]
[1758707298556,6.39767962,4187.2,4187.1,15.2373]
[1758707303851,6.39767962,4187.2,4187.1,19.2103]
[1758707305061,6.39767962,4187.2,4187.1,14.524]
[1758707305494,7.36242914,4187.2,4187.1,0.024]
[1758707305655,7.9688747,4187.2,4187.1,0.024]
[1758707305984,8.2098747,4187.2,4187.1,0.024]
[1758707307073,8.2098747,4187.2,4187.0,0.004]
[1758707307260,6.88498222,4187.1,4187.0,0.004]
[1758707307597,9.15478322,4187.1,4187.0,0.004]
[1758707307802,9.39578322,4187.1,4187.0,0.004]
[1758707308303,9.49155295,4187.1,4187.0,0.004]
[1758707308656,9.86615795,4187.1,4187.0,0.004]
[1758707309790,9.30255295,4187.1,4187.0,0.004]
[1758707310386,13.27455295,4187.1,4187.0,0.004]
[1758707314502,13.64915405,4187.1,4187.0,0.004]
[1758707318483,14.93825368,4187.1,4187.0,0.004]
[1758707319900,14.69725368,4187.1,4187.0,0.004]
[1758707321928,14.18155929,4187.1,4187.0,0.004]
[1758707322102,14.69716257,4187.1,4187.0,0.004]
[1758707328414,13.40806294,4187.1,4187.0,0.004]
[1758707328609,13.40806294,4187.1,4187.0,0.4764]
[1758707328809,13.40806294,4187.1,4187.0,0.7077]
[1758707329895,13.40806294,4187.1,4187.0,0.4764]
[1758707331499,9.43606294,4187.1,4187.0,0.4764]
[1758707333403,6.18040192,4186.9,4186.8,0.2353]
[1758707333731,7.98657977,4186.9,4186.8,0.004]
[1758707334095,7.98657977,4186.9,4186.8,0.2353]
[1758707334593,7.98577977,4186.9,4186.8,0.2353]
[1758707335320,6.6952052,4186.9,4186.8,0.2353]
[1758707335944,8.28892471,4186.9,4186.8,0.004]
[1758707346478,8.53182471,4186.9,4186.8,0.004]
[1758707346692,8.28892471,4186.9,4186.8,0.004]
[1758707346890,8.28892471,4186.9,4186.8,0.6806]
[1758707347084,6.6952052,4186.9,4186.8,0.6806]
[1758707350820,3.51560328,4186.9,4186.8,0.004]
[1758707350968,3.51560328,4186.9,4186.8,4.6526]
[1758707350969,3.63480328,4186.9,4186.8,4.6526]
[1758707351319,4.49580079,4186.9,4186.8,4.6526]
[1758707351612,4.49580079,4186.9,4186.8,19.1526]
[1758707351785,6.88420271,4186.9,4186.8,19.1526]
[1758707351979,6.88420271,4186.9,4186.8,0.004]
[1758707352207,7.9408569,4186.9,4186.8,3.976]
[1758707352385,6.88420271,4186.9,4186.8,3.976]
[1758707352905,6.88520271,4186.9,4186.8,3.976]
[1758707353302,6.2677052,4186.9,4186.8,0.004]
[1758707353509,7.55980759,4186.9,4186.8,0.004]
[1758707354303,7.93440915,4186.9,4186.8,0.004]
[1758707354532,9.01001036,4186.9,4186.8,0.004]
[1758707354725,9.80201036,4186.9,4186.8,0.004]
[1758707355007,0.792,4186.7,4186.6,0.004]
[1758707355189,1.30760328,4186.7,4186.6,0.004]
[1758707355506,7.37091929,4186.7,4186.6,0.004]
[1758707355803,6.29977306,4186.6,4186.5,0.004]
[1758707356005,6.81537634,4186.6,4186.5,0.004]
[1758707356170,7.49017634,4186.6,4186.5,0.004]
[1758707358410,11.46217634,4186.6,4186.5,0.004]
[1758707360708,10.94657306,4186.6,4186.5,1e-08]
[1758707360910,13.33785921,4186.6,4186.5,1e-08]
[1758707361286,13.33785921,4186.6,4186.4,0.004]
[1758707361287,6.18063012,4186.5,4186.4,1e-08]
[1758707361722,7.12686792,4186.5,4186.4,1e-08]
[1758707362009,7.37036792,4186.5,4186.4,1e-08]
[1758707362210,9.20575044,4186.5,4186.4,1e-08]
[1758707362617,12.91487644,4186.5,4186.4,1e-08]
[1758707363383,11.19575044,4186.5,4186.4,1e-08]
[1758707363788,11.57044656,4186.5,4186.4,1e-08]
[1758707364428,10.89564656,4186.5,4186.4,1e-08]
[1758707364714,11.57044656,4186.5,4186.4,1e-08]
[1758707365393,11.80794656,4186.5,4186.4,1e-08]
[1758707365807,6.18080129,4186.2,4185.6,0.2375]
[1758707365981,12.3883037,4186.2,4185.6,0.2375]
[1758707366416,12.6318037,4186.2,4185.6,0.2375]
[1758707366916,12.6318037,4186.2,4185.1,0.02]
[1758707366917,13.0631037,4186.2,4186.1,1e-08]
[1758707367891,13.36059045,4186.2,4186.1,1e-08]
[1758707369316,13.0631037,4186.2,4186.1,1e-08]
[1758707369984,3.18137207,4185.2,4185.1,0.2575]
[1758707370185,6.82486151,4185.2,4185.1,0.6946]
[1758707370387,7.34059931,4185.2,4185.1,0.6946]
[1758707370604,7.71534473,4185.2,4185.1,0.6946]
[1758707372287,6.27985529,4185.2,4185.1,0.6946]
[1758707375392,6.27985529,4185.2,4185.1,15.1946]
[1758707375594,3.89048322,4185.2,4185.1,15.1946]